Cogmind - Beta 17 @@@ ROGUE MODE // 2026.08.21 @ 06:26:25 Player: Talus Result: Destroyed by D-53 Grenadier with Mini Grenade Launcher Performance ------------- Evolutions (0) 0 Regions Visited (2) 400 Robots Destroyed (23) 115 Value Destroyed (592) 592 Prototype IDs (0) 0 Alien Tech Used (0) 0 Bonus (0) 0 TOTAL SCORE: 1107 Bonus ------- None Cogmind --------- Core Integrity 0/250 Matter 292/300 Energy 264/265 System Corruption 1% Temperature Cool (0) Movement Walking (190) Ox1 Location -10/Mines Parts ------- > --- POWER (1) -------- Improved Ion Engine > --- PROPULSION (2) --- Improved Aluminum Leg > --- UTILITY (2) ------ Heat Sink Medium Storage Unit > --- WEAPON (2) ------- Beam Rifle > --- INVENTORY (10) --- Aluminum Leg Aluminum Leg Medium Storage Unit Terrain Scanner Particle Gun Particle Gun Light Assault Rifle Rocket Launcher Mining Laser Peak State ------------ > --- POWER ------------ Improved Ion Engine > --- PROPULSION ------- Improved Aluminum Leg Improved Aluminum Leg > --- UTILITY ---------- Heat Sink Medium Storage Unit > --- WEAPON ----------- Beam Rifle Heavy Assault Rifle > --- INVENTORY -------- Aluminum Leg Aluminum Leg Improved Aluminum Leg Medium Storage Unit Terrain Scanner Particle Gun Particle Gun Particle Gun Light Assault Rifle Mining Laser [Rating: 13] Favorites ----------- Power Ion Engine Engine Ion Engine Propulsion Improved Aluminum Leg Leg Improved Aluminum Leg Utility Sensor Array Device Sensor Array Storage Small Storage Unit Weapon Assault Rifle Energy Gun Beam Rifle Ballistic Gun Assault Rifle Build | -11 -10 -10 ------- Run | Yrd Mat Min Slots Evolved . | . . . Power . | . . . Propulsion . | . . . Utility . | . . . Weapon . | . . . Parts Attached 29 | 7 11 11 Power 5 | 2 1 2 Engine 5 | 2 1 2 Core . | . . . Reactor . | . . . Propulsion 8 | 2 5 1 Treads . | . . . Leg 8 | 2 5 1 Wheel . | . . . Hover . | . . . Flight . | . . . Utility 6 | 1 3 2 Device 4 | . 2 2 Storage 2 | 1 1 . Processor . | . . . Hackware . | . . . Protection . | . . . Artifact . | . . . Weapon 10 | 2 2 6 Energy Gun 3 | . . 3 Energy Cannon . | . . . Ballistic Gun 7 | 2 2 3 Ballistic Cannon . | . . . Launcher . | . . . Special Weapon . | . . . Impact Weapon . | . . . Slashing Weapon . | . . . Piercing Weapon . | . . . Special Melee Weapon . | . . . Unidentified Prototypes . | . . . Parts Lost 6 | . . 6 Power 1 | . . 1 Propulsion 2 | . . 2 Utility . | . . . Weapon 3 | . . 3 Highest Loss Streak 3 | . . 3 To Critical Strikes . | . . . Average Backups 7 | 1 7 9 Power . | . 1 . Propulsion 2 | . 2 3 Utility 1 | . 1 2 Weapon 2 | . 2 4 Tool/Special . | . . . Unused Backups 13 | . 8 5 Power . | . . . Propulsion 5 | . 3 2 Utility 1 | . . 1 Weapon 7 | . 5 2 Tool/Special . | . . . Average Slot Usage (%) 98 | . 98 98 Engine 13 | . 14 13 Leg 27 | . 28 27 Device 13 | . 13 14 Storage 14 | . 14 14 Energy Gun 1 | . . 6 Ballistic Gun 26 | . 28 21 Peak Build Rating 13 | 6 10 13 Average Rating 8 | 4 8 11 On Entrance 5 | . 6 10 Avg Prop Armor Cover (%) . | . . . Naked Turns . | . . . Heaviest Build 24 | 12 20 24 Greatest Support 26 | 20 26 26 Greatest Overweight (x) . | . . . Average Overweight (x) . | . . . Largest Inventory Capacity 10 | 8 10 10 Average Capacity 8 | 6 8 10 Most Carried 10 | 4 10 10 Average Carried 7 | 1 7 9 Final Capacity 10 | 8 10 10 Final Carried 10 | 4 10 9 Class Distribution -------------------- 88% | Mutant 11% | Scavenger-Mutant Dominant Class ---------------- Mutant | -10/Materials Scavenger-Mutant | -10/Mines Resources | -11 -10 -10 ----------- Run | Yrd Mat Min Matter Collected 737 | 221 407 109 Remotely . | . . . Salvage Created 739 | . 646 93 Parts 45 | . 36 9 Haulers Intercepted . | . . . Recyclers Shooed . | . . . Parts Field Recycled . | . . . Retrieved Matter . | . . . Parts Self-Destructed . | . . . Prevented . | . . . Parts Restored . | . . . Kills | -11 -10 -10 ------- Run | Yrd Mat Min Combat Hostiles Destroyed 23 | . 17 6 Guns 23 | . 17 6 Classes Destroyed 2 | . 2 . Swarmer 9 | . 3 6 Grunt 14 | . 14 . Best Kill Streak 7 | . 7 3 Combat Bots Only 7 | . 7 3 Max Kills in Single Turn 1 | . 1 1 Gunslinging . | . . . Exploded . | . . . Melee . | . . . Uniques/NPCs Destroyed . | . . . Combat | -11 -10 -10 -------- Run | Yrd Mat Min Hostile Shots Fired 127 | . 92 35 Missed 28 | . 21 7 Hits 99 | . 71 28 Projectile 99 | . 71 28 AOE 6 | . . 6 Damage Taken 1245 | . 813 432 Core 259 | . 150 109 Absorbed by Shields . | . . . Core Remaining (%) 100 | 100 . . Volleys Fired 68 | . 58 10 Largest 2 | . 2 2 Hottest 130 | . 40 130 Shots Fired 137 | . 117 20 Gun 137 | . 117 20 Cannon . | . . . Launcher . | . . . Special . | . . . Kinetic 126 | . 117 9 Thermal 11 | . . 11 Explosive . | . . . Electromagnetic . | . . . Robot Hit Streak 6 | . 6 4 Robot Miss Streak 6 | . 6 1 Penetration Max . | . . . Secondary Targets 6 | . 4 2 Max Gunslinging Chain 1 | . 1 1 Shots Hit Robots 81 | . 69 12 Core Hits 42 | . 34 8 Critical Kills 1 | . 1 . Critical Parts Destroyed . | . . . Critical Strikes 2 | . 1 1 Burn 1 | . . 1 Destroy 1 | . 1 . Melee Attacks . | . . . Impact . | . . . Slashing . | . . . Piercing . | . . . Sneak Attacks . | . . . Combat Hostiles . | . . . Follow-up Attacks . | . . . Damage Inflicted 1014 | . 848 166 Guns 973 | . 808 165 Cannons . | . . . Explosions . | . . . Melee . | . . . Ramming 41 | . 40 1 Kinetic 860 | . 808 52 Thermal 113 | . . 113 Explosive . | . . . Electromagnetic . | . . . Impact . | . . . Slashing . | . . . Piercing . | . . . Highest Corruption 1 | . 1 1 Average Corruption 1 | . 1 1 Corruption Purged . | . . . Corruption Blocked . | . . . Effects 6 | . 4 2 Message Errors 3 | . 2 1 Matter Fused 1 | . . 1 Heat Flow Errors 1 | . 1 . Misfires 1 | . 1 . Overload Shots . | . . . Overflow Damage . | . . . Projectiles . | . . . Explosions . | . . . Melee . | . . . Knockbacks . | . . . Impact . | . . . Kinetic . | . . . Secondary . | . . . Self-Inflicted Damage . | . . . Shots . | . . . Rammed . | . . . Targets Rammed 14 | . 13 1 Kicked 14 | . 13 1 Crushed . | . . . Highest Temperature 345 | . 152 345 Average Temperature 87 | . 21 177 Received Heat Transfer 414 | . 405 9 Siege Activations . | . . . Martial Activations . | . . . Shielding Activations . | . . . Robots Disrupted . | . . . Combat Hostiles . | . . . Robots Corrupted . | . . . Combat Hostiles . | . . . Parts Fried . | . . . Impact Corruptions . | . . . Robots Melted . | . . . Combat Hostiles . | . . . Parts Melted 2 | . . 2 Heat Transferred 333 | . . 333 Parts Sabotaged . | . . . Parts Stolen . | . . . Parts Stripped . | . . . Power Chain Reactions . | . . . Alert | -11 -10 -10 ------- Run | Yrd Mat Min Maximum Alert Level . | . . . Low Security (%) 100 | 100 100 100 Level 1 . | . . . Level 2 . | . . . Level 3 . | . . . Level 4 . | . . . Level 5 . | . . . High Security . | . . . Max Security . | . . . Peak Influence 154 | . 154 86 Initial 56 | . . 56 Average 33 | . 32 46 Influence Increases 612 | . 472 140 Destroy 0b10 Robot/C 460 | . 340 120 Destroy Leader 90 | . 70 20 Destroy Structure 2 | . 2 . Partial Spotted 15 | . 15 . Lose Combat Pursuer 45 | . 45 . Influence Decreases 612 | . 326 286 Entered New Map 90 | . . 90 Time Decay 384 | . 244 140 Lost Part 56 | . . 56 Purge Threat 82 | . 82 . Squads Dispatched 4 | . 4 . Investigation 1 | . 1 . Extermination . | . . . Reinforcement 3 | . 3 . Assault . | . . . Garrison . | . . . Intercept . | . . . Searches Triggered . | . . . Construction Impeded . | . . . Haulers Reinforced . | . . . Active Scanning Responses . | . . . Cargo Convoy Interrupts . | . . . Stealth | -11 -10 -10 --------- Run | Yrd Mat Min Distress Signals 1 | . 1 . Communications Jammed . | . . . Distress Signals . | . . . Times Spotted 41 | . 32 9 Peak Tracking Total 5 | . 5 3 Tactical Retreats 3 | . 3 . Traps | -11 -10 -10 ------- Run | Yrd Mat Min Traps Triggered 2 | . 2 . Indirectly . | . . . Trap Hack Attempts . | . . . Triggered . | . . . Disarmed . | . . . Reprogrammed . | . . . Reused . | . . . Traps Extracted . | . . . Installed . | . . . Triggered . | . . . Machines | -11 -10 -10 ---------- Run | Yrd Mat Min Machines Disabled . | . . . Max in Single Turn . | . . . Machines Repaired . | . . . Machines Dismantled . | . . . Machines Sabotaged . | . . . Overloaded Fab Kills . | . . . Hacking | -11 -10 -10 --------- Run | Yrd Mat Min Machines Accessed 2 | . 2 . Terminals 2 | . 2 . Fabricators . | . . . Repair Stations . | . . . Recycling Units . | . . . Scanalyzers . | . . . Garrison Access . | . . . Total Hacks 4 | . 4 . Successful 2 | . 2 . Failed 2 | . 2 . Catastrophic . | . . . Database Lockouts . | . . . Manual . | . . . Terminals 4 | . 4 . Fabricators . | . . . Repair Stations . | . . . Recycling Units . | . . . Scanalyzers . | . . . Garrison Access . | . . . Terminal Hacks 2 | . 2 . Robot Analysis 1 | . 1 . Unreport Threat 1 | . 1 . Fabricator Hacks . | . . . Repair Station Hacks . | . . . Recycling Unit Hacks . | . . . Scanalyzer . | . . . Garrison Access Hacks . | . . . Unauthorized Hacks . | . . . Terminals . | . . . Fabricators . | . . . Repair Stations . | . . . Recycling Units . | . . . Scanalyzers . | . . . Garrison Access . | . . . Data Cores Recovered . | . . . Used . | . . . Hacking Detections 1 | . 1 . Full Trace Events . | . . . Feedback Events . | . . . Feedback Blocked . | . . . Robot Schematics Acquired . | . . . Robots Built . | . . . Authchips . | . . . Time . | . . . Total Robot Build Rating . | . . . Part Schematics Acquired . | . . . Parts Built . | . . . Authchips . | . . . Time . | . . . Total Part Build Rating . | . . . Part Studies Acquired . | . . . Parts Repaired . | . . . Time . | . . . Parts Recycled . | . . . Recycled Matter . | . . . Retrieved Matter . | . . . Retrieved Components . | . . . Parts Scanalyzed . | . . . Part Schematics Acquired . | . . . Parts Damaged . | . . . Bothacking | -11 -10 -10 ------------ Run | Yrd Mat Min Used RIF Installer . | . . . Robots Hacked . | . . . Non-combat . | . . . Combat . | . . . Robot Hacks Applied . | . . . Relay Couplers Released . | . . . Fabnet Peak Effective % . | . . . Robots Rewired . | . . . Allies Hacked . | . . . Hacks Repelled . | . . . Allies | -11 -10 -10 -------- Run | Yrd Mat Min Total Allies . | . . . Largest Group . | . . . Highest-Rated Group . | . . . Highest-Rated Ally . | . . . Total Orders . | . . . Ally Attacks . | . . . Total Damage . | . . . Kills . | . . . Allies Corrupted . | . . . Allies Melted . | . . . Intel | -11 -10 -10 ------- Run | Yrd Mat Min Active Infowar (turns) 1270 | . 1172 98 Sensors 1256 | . 1158 98 Terrain 14 | . 14 . Robot Analysis Total 1 | . 1 . Derelict Logs Recovered . | . . . Drone Launches . | . . . Drone Recoveries . | . . . Exploration | -11 -10 -10 ------------- Run | Yrd Mat Min Turns Passed 1610 | 71 1251 288 Spaces Moved 1031 | 50 800 181 Core 4 | 4 . . Treads . | . . . Legs 1027 | 46 800 181 Wheels . | . . . Hover . | . . . Flight . | . . . Fastest Speed 50 | 50 120 120 Average Speed 119 | 114 120 120 Slowest Speed 120 | 120 120 120 Overloaded Moves . | . . . Propulsion Burnouts . | . . . Robots Hopped . | . . . Potential Cave-ins . | . . . Cave-ins Triggered . | . . . Exploration Rate (%) 46 | 4 98 36 Regions Visited 2 Branch Regions 1 Pre-discovered Areas 1 | . . 1 Known Exits Taken . | . . . Unknown Exits Taken 2 | 1 1 . Scrap Searched . | . . . Spaces Dug . | . . . Terrain Destroyed . | . . . Melee . | . . . Projectile . | . . . AOE . | . . . Terrain Rammed . | . . . Walls Destroyed . | . . . Machines Disabled . | . . . Actions | -11 -10 -10 --------- Run | Yrd Mat Min Total 1289 | 60 992 237 Wait 92 | . 71 21 Move 1029 | 49 799 181 Hop . | . . . Pick Up 28 | 4 19 5 Fast Attach 8 | 6 1 1 Attach 6 | . . 6 Detach 2 | . . 2 Swap 16 | 1 11 4 Drop 26 | . 20 6 Fire 68 | . 58 10 Melee . | . . . Ram . | . . . Kick 14 | . 13 1 Crush . | . . . Escape Stasis . | . . . Rewire . | . . . Trap . | . . . Miscellaneous . | . . . Route ------- -11/Scrapyard -10/Materials (discovered 6 exits: [*Mat x3] / [*Min x2] / [*Sub]) -10/Mines (discovered 1 exit: [*Mat]) History --------- Turn | Location | Event 5 | -11/Scrapyard | Discovered new exit (range 16) 72 | -11/Scrapyard | Entered Materials 72 | -10/Materials | Discovered new exit (range 16) 316 | -10/Materials | Discovered new exit (range 12) 323 | -10/Materials | Build established: Mutant 456 | -10/Materials | Discovered new exit (range 13) 834 | -10/Materials | Discovered new exit (range 16) 1065 | -10/Materials | Discovered new exit (range 9) 1125 | -10/Materials | Discovered new exit (range 5) 1232 | -10/Materials | Core integrity fell below 50% 1292 | -10/Materials | Destroyed 7 combat bots 1323 | -10/Materials | Entered Mines 1354 | -10/Mines | Met a Derelict bent on vengeance 1358 | -10/Mines | Lost 3 parts (1p2w) 1399 | -10/Mines | Joined a pair of Derelicts in attacking an 0b10 outpost 1517 | -10/Mines | Discovered new exit (range 11) 1549 | -10/Mines | Learned location of Storage (-8) 1588 | -10/Mines | Received a Rocket Launcher from a helpful Derelict 1590 | -10/Mines | Assembled infested the area 1609 | -10/Mines | Core integrity fell below 20% 1611 | -10/Mines | Destroyed by D-53 Grenadier with Mini Grenade Launcher Last Messages --------------- 01585_ FO-EQH(g): "Everyone knows a good old rocket launcher goes a long way." 01586_ FO-EQH(g): "Need to get rid of a swarm? Done. Need a big hole in the wall? Done." 01587_ FO-EQH(g): "Need a small hole in the wall? Leave that to the mining laser wimps, I say!" 01588_ FO-EQH(g): "Would you like a rocket launcher? I know I would if I were you, so I'm going to lend you mine." 01588_ FO-EQH(g) slips back into the shadows. 01590_ ALERT: Infestation in the mines, dispatching Demolisher response squad. 01595_ System corrupted: Matter fused (-8). 01595_ Dropped Particle Gun. 01595_ Acquired Rocket Launcher. 01608_ C-45 Heavy ARC bursts open, deploying its payload. 01608_ D-53 Grenadier unfolds itself. 01608_ Imp. Aluminum Leg destroyed. 01609_ D-53 Grenadier suffers critical hit (Burn). 01609_ Imp. Aluminum Leg destroyed. 01611_ Hvy. Assault Rifle destroyed. Map ----- +----------------------------------------------------+ | ##?# #??????# ##?????????? | | #??# #??????## #?????????? | | ???# #???????# #?????????? | | ???# #???????## ##???####??? | | ???# ########## ##?### ##?? | | ???# #?## #?? | | ???# % ##?# #?? | | ???############### ##??# #?? | | ?????????????????# ##???# < #??? | | ?????????????????# #????## ##???? | | ?????????????????# #?????# ###????? | | ?????????????????# ####### ###????? | | ?????????????????# ## #????? | | ?????????????????### ## #????? | | ??????????# #### ## #????? | | ??????????# ## """ #????? | | ?????????# ##### ## """ #????? | | ???????????????????#= * """ #????? | | ???????????????????# ##[ #????? | | ???????????????????# ## #????? | | ???????????????????# #########????? | | ??????????? ##????## ## ##????? | | ?????? ## ##???? | | ?????? t d% #???? | | ?????? t d ##??? | | ??????# #### @ ##?? | | ???????# ##????# #?? | | ???????## ###???????# #?? | | ????????????????????## #?? | | ?????????????????????## #?? | | ??????????????????????## #?? | | ???????????????????????## #?? | | ???????????????????????## #?? | | ???????????????????????# ##?? | | ???????????????????????# ##??? | | ???????????????????????## #???? | | ????????????????????????# [ #???? | | ????????????????????????# #???? | | ????????????????????????# #??? | | ????????????????????????## #?? | | ?????????????????????????## #?? | | ???????????????????????????# ##?? | | ????????????????????????????## #??? | | ?????????????????????????????? #??? | | ?????????????????????????????? #??? | | ???????????????????????????????#??? | | ??????????????????????????????????? | | ??????????????????????????????????? | | ??????????????????????????????????? | | ??????????????????????????????????? | +----------------------------------------------------+ Best States ------------- Heat Dissipation 35 Energy Generation 12 Energy Capacity 265 Matter Stores 300 Matter Capacity 300 Sight Range 16 Robot Scan Range 14 Terrain Scan Range 14 Terrain Scan Density 10 Evasion (%) 55 Item Schematics ----------------- None Robot Schematics ------------------ None Fabricated ------------ Nothing Repaired ---------- Nothing Studied --------- None Alien Tech Used ----------------- None Achievements -------------- None Challenges ------------ None Game ------ Seed DamperZioniteAirjet Manual? 0 Play Time 00:17:11 Cumulative 16.9 hours Start 2026.08.21 @ 06:08:42 End 2026.08.21 @ 06:26:25 Sessions 1 Manual Loads 0 Difficulty Rogue Special Mode None Game No. 37 Rogue 37 Adventurer 0 Explorer 0 Win Type - Total 0 Types 0/0/0/0/0/0/0/0/0/0 Lore% 12 Gallery% 17 Achievement% 14 Wizard Run 0 Options --------- Layout 0 ASCII 0 Keyboard 0 Movement Mouse Keybinds 0 Fullscreen 2 Font 18/SmallcapsGlow Map View 76x50 Zoom Use 0% Tactical HUD 1 Map Filters NONE Filters NONE Steam 1 RUN: 04fffe8e-f3d5-4f78-9e76-71b24f2faf29